bitfinex/quotes_BTCUSD_20240803
["timestamp","ask_amount","ask_price","bid_price","bid_amount"]
[1722707525400,0.01122575,60792.0,60782.0,0.15745924]
[1722707525604,0.00157439,60791.0,60783.0,0.24821185]
[1722707525812,0.07357439,60798.0,60784.0,0.00429021]
[1722707526045,0.00083,60807.0,60791.0,0.0677]
[1722707526046,0.164463,60804.0,60791.0,0.0677]
[1722707526233,0.328927,60804.0,60792.0,0.15745924]
[1722707526427,0.00083,60807.0,60792.0,0.16941755]
[1722707526628,0.00083,60807.0,60800.0,0.164473]
[1722707526825,0.00083,60807.0,60798.0,0.164476]
[1722707526826,0.164463,60804.0,60798.0,0.164476]
[1722707527002,0.328918,60806.0,60800.0,0.164472]
[1722707527202,0.178463,60804.0,60801.0,0.01191596]
[1722707527479,0.014,60804.0,60801.0,0.16447]
[1722707527633,0.014,60804.0,60802.0,0.01191126]
[1722707527836,0.178463,60804.0,60802.0,0.01191126]
[1722707528040,0.178463,60804.0,60799.0,0.32193424]
[1722707528239,0.178463,60804.0,60803.0,0.01190655]
[1722707528439,0.178463,60804.0,60799.0,0.32193424]
[1722707528440,0.014,60804.0,60801.0,0.003]
[1722707528640,0.16446,60805.0,60803.0,0.01190655]
[1722707528802,0.164465,60803.0,60802.0,0.01191126]
[1722707529018,0.493396,60803.0,60802.0,0.01191126]
[1722707529225,0.822327,60803.0,60802.0,0.01191126]
[1722707529436,0.89434,60802.0,60801.0,0.003]
[1722707529645,0.565404,60802.0,60801.0,0.003]
[1722707529874,0.001,60805.0,60801.0,0.003]
[1722707530074,0.00157439,60804.0,60801.0,0.003]
[1722707530281,0.00157439,60804.0,60802.0,0.01191126]
[1722707530479,0.164465,60803.0,60802.0,0.01191126]
[1722707530682,0.164465,60803.0,60802.0,0.003]
[1722707531062,0.01188273,60807.0,60804.0,0.164462]
[1722707531292,0.005,60804.0,60801.0,0.001]
[1722707531459,0.005,60804.0,60803.0,0.164465]
[1722707531660,0.005,60804.0,60801.0,0.16547]
[1722707531863,0.005,60804.0,60802.0,0.164468]
[1722707532077,0.005,60804.0,60794.0,0.328977]
[1722707532249,0.006,60804.0,60795.0,0.15745924]
[1722707532456,0.07875194,60801.0,60795.0,0.15745924]
[1722707532675,0.164484,60796.0,60795.0,0.15745924]
[1722707533057,0.164489,60794.0,60787.0,0.7896]
[1722707533409,0.493461,60795.0,60794.0,0.003]
[1722707533632,0.2346,60796.0,60780.0,0.4675]
[1722707533633,0.32901,60789.0,60780.0,0.4675]
[1722707533836,0.329014,60788.0,60781.0,0.32198324]
[1722707534038,0.329025,60786.0,60781.0,0.15745924]
[1722707534240,0.164525,60781.0,60776.0,0.246237]
[1722707534462,0.00157439,60780.0,60777.0,0.15745924]
[1722707534649,0.00157439,60782.0,60778.0,0.164532]
[1722707534781,0.00157439,60782.0,60779.0,0.15745924]
[1722707535185,0.00157439,60782.0,60773.0,0.4675]
[1722707535382,0.164544,60774.0,60773.0,0.4675]
[1722707535635,0.00157439,60775.0,60764.0,0.0817]
[1722707535836,0.16455,60772.0,60767.0,0.32202124]
[1722707536011,0.00157439,60776.0,60769.0,0.164556]
[1722707536263,0.00157439,60776.0,60775.0,0.164541]
[1722707536474,0.072,60782.0,60775.0,0.15745924]
[1722707536475,0.008,60782.0,60775.0,0.15745924]
[1722707536674,0.493606,60777.0,60776.0,0.15745924]
[1722707536902,0.164535,60777.0,60776.0,0.15745924]
[1722707537133,0.329041,60783.0,60776.0,0.15745924]
[1722707537134,0.164526,60781.0,60776.0,0.15745924]
[1722707537280,0.00157439,60780.0,60776.0,0.32199724]
[1722707537483,0.072,60788.0,60776.0,0.15745924]
[1722707537694,0.00157439,60784.0,60779.0,0.164529]
[1722707537937,0.33060839,60784.0,60777.0,0.164535]
[1722707538061,0.00157439,60781.0,60778.0,0.15745924]
[1722707538262,0.00157439,60781.0,60769.0,0.002]
[1722707538469,0.329042,60783.0,60774.0,0.164543]
[1722707538470,0.00157439,60776.0,60774.0,0.164543]
[1722707538683,0.00157439,60776.0,60769.0,0.08075194]
[1722707538684,0.164526,60781.0,60776.0,0.164538]
[1722707539073,0.00157439,60782.0,60781.0,0.493575]
[1722707539201,0.00157439,60796.0,60781.0,0.15745924]
[1722707539403,0.16604539,60801.0,60793.0,0.328984]
[1722707539612,0.16604539,60801.0,60796.0,0.164483]
[1722707539950,0.80145164,60802.0,60796.0,0.164483]
[1722707539951,0.328938,60802.0,60796.0,0.164483]
[1722707540092,0.32893,60804.0,60796.0,0.164483]
[1722707540093,0.164471,60801.0,60796.0,0.164483]
[1722707540285,0.0106725,60802.0,60797.0,0.01193478]
[1722707540489,0.164458,60806.0,60801.0,0.16447]
[1722707540693,0.328897,60810.0,60802.0,0.15745924]
[1722707540906,0.072,60813.0,60802.0,0.1693705]
[1722707540907,0.164444,60811.0,60802.0,0.1693705]
[1722707541113,0.48270865,60818.0,60806.0,0.493371]
[1722707541114,0.00157439,60812.0,60806.0,0.493371]
[1722707541350,0.164431,60816.0,60806.0,0.97974424]
[1722707541555,0.164431,60816.0,60806.0,0.99163668]
[1722707542000,0.00157439,60815.0,60806.0,0.99163668]
[1722707542205,0.16600739,60815.0,60806.0,0.99163668]
[1722707542406,0.00157439,60815.0,60806.0,0.16935168]
[1722707542607,0.00283,60807.0,60806.0,0.99163668]
[1722707543298,0.00083,60807.0,60806.0,0.33380868]
[1722707543664,0.00083,60807.0,60806.0,0.66672268]
[1722707543835,0.00183,60807.0,60806.0,0.67272268]
[1722707544110,0.495193,60807.0,60806.0,0.01589244]
[1722707544323,0.00183,60807.0,60806.0,0.01589244]
[1722707544524,0.166284,60807.0,60806.0,0.004]
[1722707544725,0.166284,60807.0,60806.0,0.01589244]
[1722707544726,0.495193,60807.0,60806.0,0.01589244]
[1722707544936,0.00183,60807.0,60806.0,0.168457]
[1722707545142,0.00183,60807.0,60806.0,0.004]
[1722707545391,0.00183,60807.0,60806.0,0.01189244]
[1722707545595,0.00283,60807.0,60806.0,0.007]
[1722707545801,0.00283,60807.0,60806.0,0.02189244]
[1722707546048,0.00283,60807.0,60806.0,0.01]
[1722707546049,0.561693,60807.0,60806.0,0.01]
[1722707546258,0.888602,60807.0,60806.0,0.01189244]
[1722707546479,0.888602,60807.0,60793.0,0.4675]
[1722707546480,0.164483,60797.0,60793.0,0.4675]
[1722707546692,0.164483,60797.0,60794.0,0.15745924]
[1722707546903,0.328974,60795.0,60794.0,0.16940814]
[1722707547103,0.493461,60795.0,60794.0,0.16940814]
[1722707547327,0.822435,60795.0,60794.0,0.0119489]
[1722707547566,0.164487,60795.0,60794.0,0.0119489]
[1722707547765,0.164487,60795.0,60790.0,0.164498]
[1722707547986,0.328956,60799.0,60791.0,0.48645024]
[1722707548192,0.164466,60803.0,60792.0,0.08204178]
[1722707548393,0.00157439,60802.0,60800.0,0.164472]
[1722707548605,0.00157439,60806.0,60800.0,0.15745924]
[1722707548816,0.0125585,60807.0,60801.0,0.01191596]
[1722707549017,0.164467,60803.0,60801.0,0.01191596]
[1722707549225,0.164468,60802.0,60801.0,0.01191596]
[1722707549433,0.09031044,60807.0,60793.0,0.005]
[1722707549634,0.493461,60795.0,60794.0,0.002]
[1722707549838,0.493461,60795.0,60794.0,0.0139489]
[1722707550049,0.164497,60792.0,60785.0,0.429025]
[1722707550256,0.328985,60793.0,60785.0,0.15745924]
[1722707550464,0.493525,60787.0,60786.0,0.01198655]
[1722707550671,0.822542,60787.0,60786.0,0.01198655]
[1722707550883,1.0600962,60787.0,60786.0,0.01198655]
[1722707551091,0.164552,60772.0,60762.0,0.4675]
[1722707551305,0.90130894,60786.0,60785.0,0.002]
[1722707551541,1.43851561,60786.0,60785.0,0.002]
[1722707551766,1.72854861,60786.0,60785.0,0.002]
[1722707551983,2.05757261,60786.0,60785.0,0.002]
[1722707552200,2.35767261,60786.0,60785.0,0.002]
[1722707552409,0.164572,60764.0,60761.0,0.47251164]
[1722707552636,0.164571,60764.0,60761.0,0.62997088]
[1722707552825,0.164571,60764.0,60762.0,0.02230208]
[1722707553029,0.164567,60766.0,60762.0,0.02230208]
[1722707553232,0.329115,60769.0,60762.0,0.02230208]
[1722707553233,0.16614339,60765.0,60762.0,0.02230208]
[1722707553470,0.164565,60767.0,60762.0,0.02230208]
[1722707553645,0.002,60764.0,60763.0,0.32203224]
[1722707554072,0.329094,60773.0,60763.0,0.15745924]
[1722707554273,0.164548,60773.0,60768.0,0.07875194]
[1722707554486,0.329092,60774.0,60768.0,0.07875194]
[1722707554635,0.164553,60771.0,60769.0,0.01334168]
[1722707554834,0.329095,60773.0,60769.0,0.01334168]
[1722707555287,0.822772,60770.0,60769.0,0.01334168]
[1722707555444,1.307181,60770.0,60769.0,0.01334168]
[1722707555651,0.49372,60763.0,60762.0,0.007]
[1722707555855,1.94872024,60763.0,60762.0,0.007]
[1722707556102,0.493761,60758.0,60739.0,0.80178364]
[1722707556251,0.822935,60758.0,60739.0,0.47251164]
[1722707556455,1.152109,60758.0,60744.0,0.329249]
[1722707556676,0.822935,60758.0,60747.0,0.329234]
[1722707556891,0.493761,60758.0,60750.0,0.164648]
[1722707557090,0.0655,60763.0,60754.0,0.164597]
[1722707557091,0.329153,60762.0,60754.0,0.164597]
[1722707557287,0.0795,60763.0,60750.0,4e-05]
[1722707557288,0.164587,60758.0,60755.0,0.07875194]
[1722707557512,0.178587,60758.0,60755.0,0.07875194]
[1722707557695,0.518761,60758.0,60757.0,0.001913]
[1722707557928,0.507761,60758.0,60757.0,0.000913]
[1722707558130,0.014,60758.0,60757.0,0.000913]
[1722707558330,0.178587,60758.0,60757.0,0.000913]
[1722707558630,0.836935,60758.0,60757.0,0.000913]
[1722707558834,0.07875194,60769.0,60761.0,0.329155]
[1722707558835,0.164559,60769.0,60761.0,0.329155]
[1722707559033,0.0655,60777.0,60762.0,0.15745924]
[1722707559034,0.49372,60763.0,60762.0,0.15745924]
[1722707559238,0.49372,60763.0,60759.0,0.07875194]
[1722707559239,0.014,60762.0,60759.0,0.07875194]
[1722707559452,0.164581,60760.0,60759.0,0.07875194]
[1722707559832,0.329162,60761.0,60759.0,0.07875194]
[1722707559833,0.164579,60761.0,60759.0,0.07875194]
[1722707560031,0.164571,60764.0,60759.0,0.07875194]
[1722707560262,0.329121,60768.0,60759.0,0.24333594]
[1722707560263,0.16457,60765.0,60759.0,0.24333594]
[1722707560455,0.16457,60765.0,60760.0,0.164581]
[1722707560658,0.014,60769.0,60762.0,0.32915]
[1722707560883,0.014,60769.0,60766.0,0.07875194]
[1722707561033,0.014,60769.0,60768.0,0.49368]
[1722707561247,0.014,60769.0,60768.0,1.06605924]
[1722707561668,0.014,60769.0,60768.0,1.39517924]
[1722707562077,0.00157439,60779.0,60776.0,0.164537]
[1722707562257,0.47251164,60784.0,60774.0,0.329083]
[1722707562258,0.164522,60782.0,60774.0,0.329083]
[1722707562454,0.00157439,60781.0,60779.0,0.164529]
[1722707562657,0.164517,60784.0,60779.0,0.164529]
[1722707562901,0.16452,60783.0,60778.0,0.164532]
[1722707563128,0.07654501,60785.0,60780.0,0.164525]
[1722707563283,0.17555901,60785.0,60780.0,0.164525]
[1722707563653,0.014,60782.0,60778.0,0.15745924]
[1722707563855,0.164528,60780.0,60778.0,0.15745924]
[1722707564077,0.164528,60780.0,60779.0,0.001]
[1722707564462,0.822638,60780.0,60779.0,0.001]
[1722707564664,0.493583,60780.0,60779.0,0.001]
[1722707565066,0.822638,60780.0,60779.0,0.001]
[1722707565281,0.329081,60776.0,60762.0,0.09795728]
[1722707565419,0.2346,60774.0,60763.0,0.15745924]
[1722707565622,0.329127,60767.0,60758.0,0.164586]
[1722707565824,0.416009,60770.0,60757.0,0.468413]
[1722707565825,0.164578,60762.0,60759.0,0.15745924]
[1722707566024,0.0662,60766.0,60760.0,0.01339255]
[1722707566222,0.329131,60766.0,60760.0,0.16458]
[1722707566430,0.0662,60772.0,60767.0,0.164562]
[1722707566646,0.0869,60776.0,60761.0,0.15745924]
[1722707566647,0.329084,60775.0,60768.0,0.01334733]
[1722707566856,0.00157439,60775.0,60769.0,0.164557]
[1722707567056,0.329075,60777.0,60770.0,0.01333603]
[1722707567258,0.0662,60778.0,60765.0,0.329134]
[1722707567259,0.164554,60771.0,60765.0,0.329134]
[1722707567460,0.0662,60778.0,60764.0,0.0705]
[1722707567461,0.164536,60777.0,60767.0,0.07875194]
[1722707567664,0.16611339,60776.0,60769.0,0.329113]
[1722707567892,0.164544,60774.0,60770.0,0.01333603]
[1722707568101,0.164539,60776.0,60770.0,0.01333603]
[1722707568299,0.164539,60776.0,60771.0,0.164551]
[1722707568499,0.164542,60775.0,60771.0,0.164551]
[1722707568702,0.32909,60774.0,60770.0,0.01333603]
[1722707568903,0.32909,60774.0,60769.0,0.15745924]
[1722707568904,0.164539,60776.0,60772.0,0.01332473]
[1722707569103,0.164539,60776.0,60772.0,0.164549]
[1722707569309,0.003,60774.0,60773.0,0.01331908]
[1722707569799,0.00157439,60777.0,60772.0,0.164548]
[1722707570029,0.00157439,60777.0,60769.0,0.48657124]
[1722707570030,0.003,60776.0,60775.0,0.164541]
[1722707570203,0.003,60776.0,60773.0,0.15745924]
[1722707570204,0.003,60776.0,60774.0,0.164543]
[1722707570402,0.003,60776.0,60775.0,0.17784877]
[1722707570613,0.167538,60776.0,60775.0,0.01330777]
[1722707570811,0.496615,60776.0,60775.0,0.01330777]
[1722707571013,0.164544,60774.0,60773.0,0.15745924]
[1722707571215,0.164544,60774.0,60761.0,0.089]
[1722707571216,0.329101,60772.0,60761.0,0.089]
[1722707571434,0.00157439,60770.0,60766.0,0.164565]
[1722707571677,0.164553,60771.0,60767.0,0.15745924]
[1722707571880,0.329101,60772.0,60763.0,0.329147]
[1722707572079,0.416992,60774.0,60768.0,0.16456]
[1722707572257,0.416992,60774.0,60766.0,0.329127]
[1722707572258,0.16455,60772.0,60767.0,0.164562]
[1722707572493,0.164552,60771.0,60767.0,0.164562]
[1722707572701,0.07875194,60770.0,60761.0,0.002]
[1722707572865,0.164576,60762.0,60761.0,0.002]
[1722707573016,0.164576,60762.0,60753.0,0.329197]
[1722707573017,0.0662,60772.0,60757.0,0.000913]
[1722707573222,0.164584,60759.0,60758.0,0.15745924]
[1722707573494,0.164578,60762.0,60758.0,0.15745924]
[1722707573620,0.164581,60761.0,60758.0,0.15745924]
[1722707574004,0.164576,60763.0,60758.0,0.15745924]
[1722707574253,0.164574,60763.0,60758.0,0.32204624]
[1722707574460,0.001,60759.0,60758.0,0.32204624]
[1722707574661,0.001,60759.0,60758.0,0.15745924]
[1722707575633,0.165584,60759.0,60758.0,0.15745924]
[1722707575823,0.824922,60759.0,60758.0,0.005]
[1722707576151,0.824922,60759.0,60757.0,0.000913]
[1722707576152,0.493761,60758.0,60757.0,0.000913]
[1722707576359,0.164587,60758.0,60757.0,0.000913]
[1722707576667,0.001,60759.0,60757.0,0.000913]
[1722707576862,0.001,60759.0,60758.0,0.89455918]
[1722707577061,0.001,60759.0,60758.0,1.07130264]
[1722707577266,0.001,60759.0,60758.0,0.41295464]
[1722707577473,0.001,60761.0,60758.0,0.41295464]
[1722707577474,0.01064936,60766.0,60760.0,0.16458]
[1722707577620,0.00157439,60765.0,60761.0,0.01241802]
[1722707577823,0.493729,60762.0,60761.0,0.01241802]
[1722707578070,0.329147,60764.0,60761.0,0.01241802]
[1722707578311,0.164576,60762.0,60758.0,0.15745924]
[1722707578461,0.329114,60770.0,60758.0,0.15745924]
[1722707578462,0.16457,60765.0,60760.0,0.16458]
[1722707578665,0.164569,60765.0,60761.0,0.01271652]
[1722707578821,0.164574,60763.0,60761.0,0.01271652]
[1722707579197,0.167576,60762.0,60758.0,0.32204524]
[1722707579402,0.167576,60762.0,60759.0,0.164584]
[1722707579403,0.003,60762.0,60759.0,0.164584]
[1722707579598,0.003,60762.0,60759.0,0.32204324]
[1722707580134,0.003,60764.0,60759.0,0.15745924]
[1722707580339,0.003,60764.0,60757.0,0.000913]
[1722707580340,0.164587,60758.0,60757.0,0.000913]
[1722707580603,0.822935,60758.0,60757.0,0.000913]
[1722707581045,0.889135,60758.0,60757.0,0.000913]
[1722707581241,0.889135,60758.0,60750.0,4e-05]
[1722707581242,1.05763,60751.0,60750.0,4e-05]
[1722707581445,0.493939,60736.0,60735.0,0.00926]
[1722707581652,0.889432,60736.0,60735.0,0.00926]
[1722707581828,0.329273,60740.0,60735.0,0.00926]
[1722707582061,0.329246,60745.0,60738.0,0.164639]
[1722707582265,0.0662,60746.0,60736.0,0.23621118]
[1722707582466,0.0662,60746.0,60736.0,0.15745924]
[1722707582671,0.1577,60751.0,60741.0,0.164632]
[1722707582880,0.1577,60751.0,60737.0,0.07875194]
[1722707582881,0.164629,60743.0,60739.0,0.164637]
[1722707583087,0.493899,60741.0,60740.0,0.15745924]
[1722707583265,0.164646,60736.0,60735.0,0.00926]
[1722707583494,0.164642,60738.0,60735.0,0.00926]
[1722707583698,0.164639,60739.0,60735.0,0.00926]
[1722707583899,0.329269,60741.0,60736.0,0.07875194]
[1722707584107,0.40316172,60751.0,60735.0,0.00926]
[1722707584108,0.493939,60736.0,60735.0,0.00926]
[1722707584312,1.223325,60736.0,60735.0,0.00926]
[1722707584720,1.310025,60736.0,60735.0,0.00926]
[1722707585134,1.544625,60736.0,60735.0,0.00926]
[1722707585972,1.876918,60736.0,60735.0,0.00926]
[1722707586383,1.544625,60736.0,60735.0,0.00926]
[1722707587737,1.56770781,60736.0,60735.0,0.00926]
[1722707588346,1.56970781,60736.0,60735.0,0.00926]
[1722707588698,1.58370781,60736.0,60735.0,0.00926]
[1722707590582,2.53131522,60736.0,60735.0,0.00926]
[1722707590784,2.53131522,60736.0,60730.0,0.00926]
[1722707590785,1.152623,60731.0,60730.0,0.00926]
[1722707590987,1.31008224,60731.0,60730.0,0.00926]
[1722707592112,1.32008224,60731.0,60730.0,0.00926]
[1722707592310,1.65740324,60731.0,60730.0,0.00926]
[1722707592510,1.42808224,60731.0,60730.0,0.00926]
[1722707592897,1.41808224,60731.0,60730.0,0.00926]
[1722707594017,1.152623,60731.0,60730.0,0.00926]
[1722707594234,1.163623,60731.0,60730.0,0.00926]
[1722707594429,1.172623,60731.0,60730.0,0.00926]
[1722707594898,1.161623,60731.0,60730.0,0.00926]
[1722707595257,1.163623,60731.0,60730.0,0.00926]
[1722707595757,0.834302,60731.0,60730.0,0.00926]
[1722707596170,1.160623,60731.0,60730.0,0.00926]
[1722707596321,0.831302,60731.0,60730.0,0.00926]
[1722707597347,0.841302,60731.0,60730.0,0.00926]
[1722707597524,0.018,60731.0,60730.0,0.00926]
[1722707597928,0.018,60731.0,60730.0,0.42302604]
[1722707598132,0.018,60731.0,60730.0,1.06878618]
[1722707598306,0.018,60731.0,60730.0,1.41100404]
[1722707598512,0.329234,60747.0,60730.0,0.25836304]
[1722707598718,0.00157439,60743.0,60738.0,0.0823]
[1722707598916,0.00157439,60749.0,60748.0,0.493842]
[1722707599151,0.329116,60769.0,60748.0,0.329225]
[1722707599152,0.329182,60757.0,60748.0,0.329225]
[1722707599366,0.164603,60752.0,60748.0,0.01279002]
[1722707599777,0.164614,60749.0,60746.0,0.0682]
[1722707599976,0.08148071,60758.0,60739.0,0.48673624]
[1722707599977,0.164609,60750.0,60749.0,0.01278437]
[1722707600179,0.164615,60748.0,60742.0,0.329259]
[1722707600379,0.164612,60749.0,60744.0,0.164624]
[1722707600579,0.164615,60748.0,60744.0,0.164624]
[1722707600854,0.2346,60756.0,60745.0,0.01280699]
[1722707601211,0.164607,60751.0,60747.0,0.164616]
[1722707601414,0.164603,60752.0,60747.0,0.329232]
[1722707601615,0.006,60749.0,60748.0,0.01279002]
[1722707601816,0.170611,60749.0,60748.0,0.01279002]
[1722707602180,0.499834,60749.0,60748.0,0.01279002]
[1722707602335,0.2346,60750.0,60734.0,0.0682]
[1722707602533,0.2346,60750.0,60732.0,0.0823]
[1722707602534,0.164644,60737.0,60732.0,0.0823]
[1722707602741,0.82322,60737.0,60730.0,0.00926]
[1722707602956,0.493932,60737.0,60730.0,0.00926]
[1722707603367,0.82322,60737.0,60730.0,0.00926]
[1722707603915,0.493932,60737.0,60731.0,0.16466]
[1722707604122,0.0708,60748.0,60730.0,0.00926]
[1722707604360,0.001,60749.0,60741.0,0.07875194]
[1722707604590,0.001,60749.0,60747.0,0.164615]
[1722707604796,0.001,60749.0,60748.0,0.15745924]
[1722707605008,0.001,60749.0,60742.0,0.0676]
[1722707605009,0.329229,60748.0,60743.0,0.15745924]
[1722707605226,0.164625,60744.0,60737.0,0.6218]
[1722707605438,0.164629,60743.0,60737.0,0.5542]
[1722707605687,0.329241,60746.0,60740.0,0.164634]
[1722707605887,0.164623,60745.0,60741.0,0.164633]
[1722707606103,0.329253,60744.0,60737.0,0.5542]
[1722707606314,0.009,60749.0,60737.0,0.4675]
[1722707606315,0.164637,60740.0,60737.0,0.4675]
[1722707606526,0.0708,60745.0,60737.0,0.4675]
[1722707606737,0.493924,60738.0,60737.0,0.4675]
[1722707607209,0.164641,60738.0,60737.0,0.4675]
[1722707607418,0.164636,60740.0,60737.0,0.4675]
[1722707607634,0.329269,60741.0,60737.0,0.4675]
[1722707607844,0.164641,60738.0,60737.0,0.4675]
[1722707608079,0.0708,60745.0,60737.0,0.4675]
[1722707608374,0.164639,60739.0,60737.0,0.4675]
[1722707608575,0.0808,60745.0,60739.0,0.329276]
[1722707608576,0.01,60745.0,60739.0,0.329276]
[1722707608783,0.164623,60745.0,60740.0,0.32209324]
[1722707608985,0.16462,60746.0,60741.0,0.164632]
[1722707609184,0.329231,60748.0,60741.0,0.164632]
[1722707609185,0.164622,60745.0,60741.0,0.164632]
[1722707609317,0.0105334,60749.0,60744.0,0.0676]
[1722707609518,0.164593,60756.0,60748.0,0.329227]
[1722707609730,0.329179,60758.0,60748.0,0.329227]
[1722707609731,0.164595,60755.0,60751.0,0.164605]
[1722707610132,0.164595,60755.0,60749.0,0.15745924]
[1722707610133,0.01064564,60759.0,60749.0,0.15745924]
[1722707610358,0.07875194,60756.0,60745.0,0.0867]
[1722707610518,0.0835,60761.0,60739.0,0.0676]
[1722707610519,0.32921,60752.0,60739.0,0.0676]
[1722707610721,0.164618,60747.0,60740.0,0.15745924]
[1722707610948,0.164618,60747.0,60732.0,0.01074493]
[1722707610949,0.07875194,60746.0,60732.0,0.318957]
[1722707611153,0.2346,60750.0,60733.0,0.32211324]
[1722707611154,0.164642,60738.0,60733.0,0.32211324]
[1722707611359,0.0835,60749.0,60730.0,0.47676]
[1722707611563,0.164644,60737.0,60731.0,0.15745924]
[1722707611761,0.164655,60733.0,60731.0,0.15745924]
[1722707612003,0.329236,60747.0,60731.0,0.15745924]
[1722707612243,0.16465,60735.0,60731.0,0.32211824]
[1722707612446,0.16465,60735.0,60731.0,0.32211924]
[1722707612977,0.16465,60735.0,60731.0,0.15745924]
[1722707613110,0.001,60733.0,60731.0,0.32211924]
[1722707613325,0.001,60733.0,60731.0,0.15745924]
[1722707613672,0.001,60733.0,60730.0,0.00926]
[1722707613673,0.493981,60731.0,60730.0,0.00926]
[1722707613805,0.16466,60731.0,60730.0,0.00926]
[1722707614253,0.002,60733.0,60730.0,0.17987224]
[1722707614459,0.002,60733.0,60731.0,0.15745924]
[1722707614603,0.164657,60732.0,60731.0,0.01314734]
[1722707615007,0.823287,60732.0,60731.0,0.01314734]
[1722707615282,0.493981,60731.0,60730.0,0.00926]
[1722707615733,0.001,60731.0,60730.0,0.16671924]
[1722707616011,0.001,60731.0,60730.0,0.17987224]
[1722707616172,0.001,60731.0,60730.0,0.34453524]
[1722707616365,0.001,60731.0,60730.0,0.17987224]
[1722707616539,0.001,60731.0,60730.0,0.34453524]
[1722707616736,0.001,60731.0,60730.0,0.17987224]
[1722707617174,0.001,60731.0,60730.0,0.34453524]
[1722707617548,0.001,60731.0,60730.0,0.17987224]
[1722707617723,0.001,60731.0,60730.0,0.34453524]
[1722707617930,0.001,60731.0,60730.0,0.17987224]
[1722707617931,0.002,60731.0,60730.0,0.17987224]
[1722707618777,0.002,60731.0,60730.0,0.34453524]
[1722707619544,0.002,60731.0,60730.0,0.17987224]
[1722707620314,0.16666,60731.0,60730.0,0.17987224]
[1722707620857,0.825302,60731.0,60730.0,0.17987224]
[1722707621159,0.495981,60731.0,60730.0,0.16671924]
[1722707621319,0.16666,60731.0,60730.0,0.16671924]
[1722707621521,0.16666,60731.0,60730.0,0.17987224]
[1722707621522,0.495981,60731.0,60730.0,0.17987224]
[1722707621698,0.495981,60731.0,60730.0,0.022413]
[1722707621898,1.154623,60731.0,60730.0,0.00926]
[1722707622129,1.554744,60731.0,60730.0,0.00926]
[1722707623178,1.553744,60731.0,60730.0,0.00926]
[1722707623434,1.552744,60731.0,60730.0,0.00926]
[1722707623654,1.572744,60731.0,60730.0,0.00926]
[1722707624177,1.252423,60731.0,60730.0,0.00926]
[1722707624972,1.241423,60731.0,60730.0,0.00926]
[1722707625172,1.252423,60731.0,60730.0,0.00926]
[1722707625761,1.581744,60731.0,60730.0,0.00926]
[1722707625961,1.69473178,60731.0,60730.0,0.00926]
[1722707626174,1.581744,60731.0,60730.0,0.00926]
[1722707626376,1.69459087,60731.0,60730.0,0.00926]
[1722707626576,1.252423,60731.0,60730.0,0.00926]
[1722707627644,1.581744,60731.0,60730.0,0.00926]
[1722707628286,1.252423,60731.0,60730.0,0.00926]
[1722707630473,0.029,60731.0,60730.0,0.00926]
[1722707630871,0.029,60731.0,60730.0,0.022413]
[1722707631153,0.19366,60731.0,60730.0,0.00926]
[1722707631411,0.522981,60731.0,60730.0,0.022413]
[1722707631642,1.181623,60731.0,60730.0,0.022413]
[1722707632052,1.265123,60731.0,60730.0,0.00926]
[1722707632252,1.337123,60731.0,60730.0,0.00926]
[1722707633811,0.995765,60731.0,60730.0,0.00926]
[1722707634296,1.325086,60731.0,60730.0,0.00926]
[1722707636510,1.241586,60731.0,60730.0,0.00926]
[1722707637312,0.840265,60731.0,60730.0,0.00926]
[1722707637514,0.510944,60731.0,60730.0,0.00926]
[1722707638623,0.164659,60732.0,60730.0,0.00926]
[1722707638860,0.00083,60735.0,60730.0,0.00926]
[1722707639063,0.00083,60735.0,60734.0,0.563656]
[1722707639224,0.00083,60735.0,60734.0,0.72111524]
[1722707639417,0.00083,60735.0,60734.0,0.73424561]
[1722707639619,0.00083,60735.0,60734.0,0.24028961]
[1722707640542,0.00083,60735.0,60734.0,0.17058961]
[1722707640749,0.00083,60735.0,60734.0,0.01313037]
[1722707640946,0.824077,60735.0,60734.0,0.01313037]
[1722707641148,1.153376,60735.0,60734.0,0.01313037]
[1722707641448,0.00083,60735.0,60730.0,0.00926]
[1722707641646,0.165479,60735.0,60734.0,0.002]
[1722707641862,0.165479,60735.0,60734.0,0.007]
[1722707642069,0.165479,60735.0,60734.0,0.005]
[1722707642262,0.494778,60735.0,60734.0,0.01813037]
[1722707642470,0.829077,60735.0,60734.0,0.006]
[1722707642650,0.170479,60735.0,60734.0,0.006]
[1722707642861,0.00583,60735.0,60734.0,0.001]
[1722707643109,0.829077,60735.0,60734.0,0.001]
[1722707643327,1.487675,60735.0,60734.0,0.001]
[1722707643587,1.641175,60735.0,60734.0,0.001]
[1722707643831,1.152623,60731.0,60730.0,0.00926]
[1722707644087,1.340523,60731.0,60730.0,0.00926]
[1722707644256,1.152641,60730.0,60729.0,0.00926]
[1722707644454,0.164697,60718.0,60712.0,0.00926]
[1722707644684,0.329407,60715.0,60712.0,0.00926]
[1722707644834,0.329393,60718.0,60713.0,0.01324923]
[1722707645040,0.164701,60716.0,60713.0,0.01324923]
[1722707645254,0.329388,60719.0,60713.0,0.01324923]
[1722707645255,0.164699,60717.0,60713.0,0.01324923]
[1722707645651,0.164704,60715.0,60713.0,0.01324923]
[1722707646082,0.164701,60716.0,60713.0,0.01324923]
[1722707646673,0.164701,60716.0,60713.0,0.02324923]
[1722707646897,0.164701,60716.0,60713.0,0.01324923]
[1722707647536,0.329403,60716.0,60713.0,0.01324923]
[1722707647736,0.164704,60715.0,60713.0,0.01324923]
[1722707647936,0.001,60716.0,60713.0,0.02424923]
[1722707648176,0.001,60716.0,60713.0,0.03024923]
[1722707648521,0.164704,60715.0,60713.0,0.03024923]